Cogmind - Beta 13 @@@ ROGUE MODE // 2024.03.12 @ 21:43:45 Player: ChromeKnight Result: Destroyed by Y-45 Defender with Beam Rifle Performance ------------- Evolutions (0) 0 Regions Visited (2) 400 Robots Destroyed (9) 45 Value Destroyed (321) 321 Prototype IDs (0) 0 Alien Tech Used (0) 0 Bonus (0) 0 TOTAL SCORE: 766 Bonus ------- None Cogmind --------- Core Integrity 0/250 Matter 300/300 Energy 99/100 System Corruption 0% Temperature Cool (15) Movement Rolling (110) Location -10/Subcaves Parts ------- > --- POWER (1) -------- (None) > --- PROPULSION (2) --- Subdweller Monowheel Subdweller Monowheel > --- UTILITY (2) ------ Medium Storage Unit Structural Scanner > --- WEAPON (2) ------- Subdweller Machine Gun Battle Cannon > --- INVENTORY (10) --- Aluminum Leg Aluminum Leg Aluminum Leg Small Storage Unit Subdweller Optics Battle Rifle Subdweller Machine Gun Datajack Datajack Datajack Peak State ------------ > --- POWER ------------ Subdweller Power Source > --- PROPULSION ------- Subdweller Monowheel Subdweller Monowheel > --- UTILITY ---------- Medium Storage Unit Structural Scanner > --- WEAPON ----------- Subdweller Machine Gun Battle Cannon > --- INVENTORY -------- Aluminum Leg Aluminum Leg Aluminum Leg Small Storage Unit Subdweller Optics Battle Rifle Datajack Datajack Datajack [Rating: 13] Favorites ----------- Power Light Ion Engine Engine Light Ion Engine Propulsion Aluminum Leg Leg Aluminum Leg Wheel Subdweller Monowheel Utility Structural Scanner Device Structural Scanner Storage Medium Storage Unit Weapon Light Assault Rifle Ballistic Gun Light Assault Rifle Ballistic Cannon Battle Cannon Build | -11 -10 -10 ------- Run | Yrd Mat Sub Slots Evolved . | . . . Power . | . . . Propulsion . | . . . Utility . | . . . Weapon . | . . . Parts Attached 13 | 6 2 5 Power 2 | 1 . 1 Engine 2 | 1 . 1 Core . | . . . Reactor . | . . . Propulsion 4 | 2 . 2 Treads . | . . . Leg 2 | 2 . . Wheel 2 | . . 2 Hover . | . . . Flight . | . . . Utility 3 | 1 2 . Device 1 | . 1 . Storage 2 | 1 1 . Processor . | . . . Hackware . | . . . Protection . | . . . Artifact . | . . . Weapon 4 | 2 . 2 Energy Gun . | . . . Energy Cannon . | . . . Ballistic Gun 3 | 2 . 1 Ballistic Cannon 1 | . . 1 Launcher . | . . . Special Weapon . | . . . Impact Weapon . | . . . Slashing Weapon . | . . . Piercing Weapon . | . . . Special Melee Weapon . | . . . Unidentified Prototypes . | . . . Parts Lost 3 | . . 3 Power 1 | . . 1 Propulsion 1 | . . 1 Utility . | . . . Weapon 1 | . . 1 Highest Loss Streak 1 | . . 1 To Critical Strikes . | . . . Average Slot Usage (%) 95 | . 97 91 Engine 13 | . 14 13 Leg 18 | . 28 5 Wheel 9 | . . 21 Device 12 | . 11 14 Storage 14 | . 14 14 Ballistic Gun 24 | . 28 18 Ballistic Cannon 1 | . . 2 Naked Turns . | . . . Heaviest Build 23 | 10 16 23 Greatest Support 40 | 20 20 40 Greatest Overweight (x) 1 | . . 1 Average Overweight (x) . | . . . Largest Inventory Capacity 10 | 8 10 10 Average Capacity 9 | 6 9 10 Most Carried 10 | . 7 10 Average Carried 6 | . 5 8 Final Capacity 10 | 8 10 10 Final Carried 10 | . 7 10 Class Distribution -------------------- 100% | Mutant Dominant Class ---------------- Mutant | -10/Materials Mutant | -10/Subcaves Resources | -11 -10 -10 ----------- Run | Yrd Mat Sub Matter Collected 453 | 233 92 128 Remotely . | . . . Salvage Created 337 | 57 124 156 Parts 21 | 2 7 12 Haulers Intercepted . | . . . Recyclers Shooed . | . . . Parts Field Recycled . | . . . Retrieved Matter . | . . . Parts Self-Destructed 5 | . . 5 Prevented . | . . . Kills | -11 -10 -10 ------- Run | Yrd Mat Sub Combat Hostiles Destroyed 8 | . 3 5 Guns 8 | . 3 5 Classes Destroyed 3 | 1 1 1 Recycler 1 | 1 . . Grunt 3 | . 3 . Subdweller 5 | . . 5 Best Kill Streak 1 | 1 1 1 Combat Bots Only 1 | . 1 1 Max Kills in Single Turn 1 | 1 1 1 Gunslinging . | . . . Exploded . | . . . Melee . | . . . Uniques/NPCs Destroyed . | . . . Combat | -11 -10 -10 -------- Run | Yrd Mat Sub Hostile Shots Fired 57 | . 21 36 Missed 12 | . 5 7 Damage Taken 796 | . 224 572 Core 255 | . 17 238 Absorbed by Shields . | . . . Core Remaining (%) 100 | 100 . . Volleys Fired 63 | 5 20 38 Largest 2 | 1 2 2 Hottest 69 | 20 40 69 Shots Fired 111 | 5 40 66 Gun 109 | 5 40 64 Cannon 2 | . . 2 Launcher . | . . . Special . | . . . Kinetic 111 | 5 40 66 Thermal . | . . . Explosive . | . . . Electromagnetic . | . . . Robot Hit Streak 18 | 4 8 18 Robot Miss Streak 2 | 1 2 1 Penetration Max . | . . . Secondary Targets . | . . . Shots Hit Robots 84 | 4 29 51 Core Hits 29 | 2 11 16 Critical Kills 1 | . . 1 Critical Parts Destroyed . | . . . Critical Strikes 1 | . . 1 Destroy 1 | . . 1 Melee Attacks . | . . . Impact . | . . . Slashing . | . . . Piercing . | . . . Sneak Attacks . | . . . Combat Hostiles . | . . . Follow-up Attacks . | . . . Damage Inflicted 814 | 33 201 580 Guns 799 | 33 201 565 Cannons 15 | . . 15 Explosions . | . . . Melee . | . . . Ramming . | . . . Kinetic 814 | 33 201 580 Thermal . | . . . Explosive . | . . . Electromagnetic . | . . . Impact . | . . . Slashing . | . . . Piercing . | . . . Highest Corruption . | . . . Average Corruption . | . . . Corruption Purged . | . . . Corruption Blocked . | . . . Overload Shots . | . . . Overflow Damage . | . . . Projectiles . | . . . Explosions . | . . . Melee . | . . . Knockbacks . | . . . Impact . | . . . Kinetic . | . . . Secondary . | . . . Self-Inflicted Damage . | . . . Shots . | . . . Rammed . | . . . Targets Rammed . | . . . Kicked . | . . . Crushed . | . . . Highest Temperature 36 | . 36 . Average Temperature 15 | . 15 . Received Heat Transfer 249 | . 147 102 Siege Activations . | . . . Robots Corrupted . | . . . Combat Hostiles . | . . . Parts Fried . | . . . Impact Corruptions . | . . . Robots Melted . | . . . Combat Hostiles . | . . . Parts Melted . | . . . Heat Transferred . | . . . Parts Sabotaged . | . . . Parts Stolen . | . . . Parts Stripped . | . . . Power Chain Reactions . | . . . Alert | -11 -10 -10 ------- Run | Yrd Mat Sub Peak Influence 88 | 5 88 . Initial 3 | . 3 . Average 32 | 2 36 . Maximum Alert Level . | . . . Low Security (%) 100 | 100 100 . Level 1 . | . . . Level 2 . | . . . Level 3 . | . . . Level 4 . | . . . Level 5 . | . . . High Security . | . . . Max Security . | . . . Squads Dispatched 1 | . 1 . Investigation . | . . . Extermination . | . . . Reinforcement 1 | . 1 . Assault . | . . . Garrison . | . . . Intercept . | . . . Searches Triggered . | . . . Construction Impeded . | . . . Haulers Reinforced . | . . . Active Scanning Responses . | . . . Cargo Convoy Interrupts . | . . . Stealth | -11 -10 -10 --------- Run | Yrd Mat Sub Distress Signals . | . . . Communications Jammed . | . . . Distress Signals . | . . . Times Spotted 14 | . 7 7 Peak Tracking Total 3 | . 3 3 Tactical Retreats 1 | . 1 . Traps | -11 -10 -10 ------- Run | Yrd Mat Sub Traps Triggered . | . . . Indirectly . | . . . Trap Hack Attempts . | . . . Triggered . | . . . Disarmed . | . . . Reprogrammed . | . . . Reused . | . . . Traps Extracted . | . . . Installed . | . . . Triggered . | . . . Machines | -11 -10 -10 ---------- Run | Yrd Mat Sub Machines Disabled . | . . . Max in Single Turn . | . . . Machines Repaired . | . . . Machines Dismantled . | . . . Machines Sabotaged . | . . . Overloaded Fab Kills . | . . . Hacking | -11 -10 -10 --------- Run | Yrd Mat Sub Machines Accessed . | . . . Terminals . | . . . Fabricators . | . . . Repair Stations . | . . . Recycling Units . | . . . Scanalyzers . | . . . Garrison Access . | . . . Total Hacks . | . . . Successful . | . . . Failed . | . . . Catastrophic . | . . . Database Lockouts . | . . . Manual . | . . . Terminals . | . . . Fabricators . | . . . Repair Stations . | . . . Recycling Units . | . . . Scanalyzers . | . . . Garrison Access . | . . . Terminal Hacks . | . . . Fabricator Hacks . | . . . Repair Station Hacks . | . . . Recycling Unit Hacks . | . . . Scanalyzer . | . . . Garrison Access Hacks . | . . . Unauthorized Hacks . | . . . Terminals . | . . . Fabricators . | . . . Repair Stations . | . . . Recycling Units . | . . . Scanalyzers . | . . . Garrison Access . | . . . Data Cores Recovered . | . . . Used . | . . . Hacking Detections . | . . . Full Trace Events . | . . . Feedback Events . | . . . Feedback Blocked . | . . . Robot Schematics Acquired . | . . . Robots Built . | . . . Authchips . | . . . Time . | . . . Total Robot Build Rating . | . . . Part Schematics Acquired . | . . . Parts Built . | . . . Authchips . | . . . Time . | . . . Total Part Build Rating . | . . . Parts Repaired . | . . . Time . | . . . Parts Recycled . | . . . Recycled Matter . | . . . Retrieved Matter . | . . . Retrieved Components . | . . . Parts Scanalyzed . | . . . Part Schematics Acquired . | . . . Parts Damaged . | . . . Bothacking | -11 -10 -10 ------------ Run | Yrd Mat Sub Used RIF Installer . | . . . Robots Hacked . | . . . Non-combat . | . . . Combat . | . . . Robot Hacks Applied . | . . . Relay Couplers Released . | . . . Fabnet Peak Effective % . | . . . Robots Rewired . | . . . Allies Hacked . | . . . Hacks Repelled . | . . . Allies | -11 -10 -10 -------- Run | Yrd Mat Sub Total Allies . | . . . Largest Group . | . . . Highest-Rated Group . | . . . Highest-Rated Ally . | . . . Total Orders . | . . . Ally Attacks . | . . . Total Damage . | . . . Kills . | . . . Allies Corrupted . | . . . Allies Melted . | . . . Intel | -11 -10 -10 ------- Run | Yrd Mat Sub Robot Analysis Total . | . . . Derelict Logs Recovered . | . . . Drone Launches . | . . . Drone Recoveries . | . . . Exploration | -11 -10 -10 ------------- Run | Yrd Mat Sub Turns Passed 980 | 67 520 393 Spaces Moved 572 | 47 276 249 Core 9 | 9 . . Treads . | . . . Legs 343 | 38 276 29 Wheels 220 | . . 220 Hover . | . . . Flight . | . . . Fastest Speed 50 | 50 120 110 Average Speed 115 | 106 120 111 Slowest Speed 190 | 120 120 190 Overloaded Moves . | . . . Propulsion Burnouts . | . . . Robots Hopped . | . . . Cave-ins Triggered . | . . . Exploration Rate (%) 20 | 3 40 17 Regions Visited 2 Branch Regions 1 Pre-discovered Areas . | . . . Known Exits Taken . | . . . Unknown Exits Taken 2 | 1 1 . Scrap Searched 2 | . . 2 Spaces Dug . | . . . Terrain Destroyed . | . . . Melee . | . . . Projectile . | . . . AOE . | . . . Terrain Rammed . | . . . Walls Destroyed . | . . . Machines Disabled . | . . . Actions | -11 -10 -10 --------- Run | Yrd Mat Sub Total 797 | 57 432 308 Wait 137 | . 129 8 Move 570 | 46 275 249 Hop . | . . . Pick Up 11 | . 6 5 Fast Attach 9 | 6 1 2 Attach 2 | . . 2 Detach . | . . . Swap 2 | . 1 1 Drop 3 | . . 3 Fire 63 | 5 20 38 Melee . | . . . Ram . | . . . Kick . | . . . Crush . | . . . Escape Stasis . | . . . Rewire . | . . . Trap . | . . . Miscellaneous . | . . . Route ------- -11/Scrapyard -10/Materials (discovered 3 exits: [*Mat] / [*Min] / [*Sub]) -10/Subcaves History --------- Turn | Location | Event 5 | -11/Scrapyard | Discovered new exit (range 16) 68 | -11/Scrapyard | Entered Materials 114 | -10/Materials | Discovered new exit (range 5) 313 | -10/Materials | Build established: Mutant 417 | -10/Materials | Discovered new exit (range 6) 545 | -10/Materials | Discovered new exit (range 7) 588 | -10/Materials | Entered Subcaves 599 | -10/Subcaves | Shifting Twisted Machinery released Sub. Power Source 686 | -10/Subcaves | Core integrity fell below 50% 735 | -10/Subcaves | Core integrity fell below 20% 786 | -10/Subcaves | Shifting Twisted Machinery released Sub. Power Source 912 | -10/Subcaves | Disturbed a concealed Subdweller 981 | -10/Subcaves | Destroyed by Y-45 Defender with Beam Rifle Last Messages --------------- 00728_ Lgt. Assault Rifle destroyed. 00747_ WR-CDR(R) destroyed. 00749_ Acquired 21 matter. 00760_ Acquired Sub. Optics. Sub. Power Source falls loose from the Twisted Machinery. 00818_ Acquired Battle Cannon. 00920_ 63-OJK(R) suffers critical hit (Destroy). 00920_ 63-OJK(R) destroyed. 00924_ Acquired 24 matter. 00926_ Searching scrap... 00926_ Found Battle Rifle. 00926_ Found Sub. Machine Gun. 00927_ Searching scrap... 00927_ Found Flamer. 00931_ Acquired Battle Rifle. 00933_ Acquired Sub. Machine Gun. 00962_ Sub. Monowheel shoots sparks and powers down. 00978_ Sub. Power Source destroyed. Map ----- +----------------------------------------------------+ | ??????##%#&&!* #####???????????????? | | ??????## ##"#" ##??????????????????? | | ??????##% ### ##??????????????????? | | ??????##"|## ###??????????????????? | | ??????###### ####??????????????????? | | ??????###### #######????????????????? | | ??????????## ##########?????????????? | | ??????????### # #####?????????????? | | ??????????### ##?????????????? | | ???????????## * ###?????????????? | | ???????????## # # ###?????????????? | | ???????????### ##### ###?????????????? | | ???????????### # # ###?????????????? | | ???????????### ##?????????????? | | ???????????## ### ##?????????????? | | ???????????######## ###?????????????? | | ???????????##### ## ###?????????????? | | ?????????????### # ###?????????????? | | ?????????????## # ###?????????????? | | ?????????????## ########???????? | | ?????????????### ########???????? | | ?????????###### ## ##???????? | | ?????????####### # # ##???????? | | #????????## # ## ##???????? | | ##???????### ## ##gY ##???????? | | ########### ###### # @ ##???????? | | ########### ##### # ######???????? | | ###% ## # # # #######???????? | | % ###???????????? | | ##????????????? | | ## #### # # ##????????????? | | ## ## ##### ###### ###????????????? | | ## ##### ###########????????????? | | #% ##?# #########?????????????? | | % ### ##???????????????????? | | ### ###???????????????????? | | ########## ###???????????????????? | | ########### ##????????????????????? | | ## %##? ????????????????????? | | " # ?????????????????????? | | " " ### % ????????????????????? | | & & ### ## ????????????????????? | | "" " ##### ???????????????????? | | " ##? ????????????????????? | | # ? ?????????????????????? | | # ???????????????????????? | | ## ###???????????????????????? | | ## ###???????????????????????? | | #? ##????????????????????????? | | ?? ##????????????????????????? | +----------------------------------------------------+ Best States ------------- Heat Dissipation 25 Energy Generation 15 Energy Capacity 200 Matter Stores 300 Matter Capacity 300 Sight Range 16 Terrain Scan Density 10 Evasion (%) 55 Item Schematics ----------------- None Robot Schematics ------------------ None Fabricated ------------ Nothing Alien Tech Used ----------------- None Achievements -------------- None Challenges ------------ None Game ------ Seed TrackerLargeArmor Manual? 0 Play Time 00:05:46 Cumulative 437.1 hours Start 2024.03.12 @ 21:39:49 End 2024.03.12 @ 21:43:45 Sessions 1 Manual Loads 0 Difficulty Rogue Special Mode None Game No. 763 Rogue 608 Adventurer 148 Explorer 7 Win Type - Total 19 Types 16/0/2/1/0/0/0/0/0 Lore% 77 Gallery% 88 Achievement% 73 Wizard Run 0 Options --------- Layout 1 ASCII 0 Keyboard 0 Movement Numpad Keybinds 0 Fullscreen 2 Font 24/Smallcaps Map View 50x35 Zoom Use 0% Tactical HUD 1 Map Filters NONE Filters NONE Steam 1 RUN: c312c2c6-7d4d-4971-bc2f-f2dbc85bb160